[Event "*** Titled Tuesday Blitz"]
[Site "Chess.com"]
[Date "2020.04.07"]
[Round "8"]
[White "ValentinDragnev"]
[Black "Noam_Vitenberg"]
[Result "0-1"]
[WhiteElo "2704"]
[BlackElo "2479"]
[TimeControl "180+1"]
[EndTime "14:32:11 PDT"]
[Termination "Noam_Vitenberg won by checkmate"]

1. d4 {[%clk 0:03:00.9]} 1... Nf6 {[%clk 0:02:56.5]} 2. c4 {[%clk 0:03:00.2]}
2... e6 {[%clk 0:02:52.3]} 3. Nc3 {[%clk 0:02:59.1]} 3... d5 {[%clk 0:02:52.8]}
4. Nf3 {[%clk 0:02:56.5]} 4... Bb4 {[%clk 0:02:46.2]} 5. e3 {[%clk 0:02:56.8]}
5... O-O {[%clk 0:02:42.7]} 6. Bd2 {[%clk 0:02:57]} 6... b6 {[%clk 0:02:38.5]}
7. cxd5 {[%clk 0:02:55.6]} 7... exd5 {[%clk 0:02:35.4]} 8. Rc1 {[%clk 0:02:56]}
8... c6 {[%clk 0:02:29.5]} 9. Bd3 {[%clk 0:02:51.4]} 9... Bd6 {[%clk 0:02:26.2]}
10. O-O {[%clk 0:02:50.7]} 10... Ba6 {[%clk 0:02:23.6]} 11. Bxa6 {[%clk
0:02:33.1]} 11... Nxa6 {[%clk 0:02:24.5]} 12. Qa4 {[%clk 0:02:30.3]} 12... Qc8
{[%clk 0:02:24.4]} 13. Ne2 {[%clk 0:02:23.7]} 13... c5 {[%clk 0:02:21.3]} 14.
dxc5 {[%clk 0:02:19.7]} 14... Nxc5 {[%clk 0:02:19.4]} 15. Qd4 {[%clk 0:02:09.8]}
15... Qa6 {[%clk 0:02:15.3]} 16. Nc3 {[%clk 0:02:03]} 16... Rad8 {[%clk
0:02:14.1]} 17. Rfd1 {[%clk 0:01:56.7]} 17... Nd3 {[%clk 0:02:10.3]} 18. Rb1
{[%clk 0:01:52.2]} 18... Rfe8 {[%clk 0:02:09.8]} 19. Be1 {[%clk 0:01:30]} 19...
Nxe1 {[%clk 0:02:08.9]} 20. Nxe1 {[%clk 0:01:30.1]} 20... Be5 {[%clk 0:02:03.5]}
21. Qd3 {[%clk 0:01:29.3]} 21... Qc4 {[%clk 0:01:55.4]} 22. a3 {[%clk
0:00:17.4]} 22... Bxh2+ {[%clk 0:01:44.4]} 23. Kxh2 {[%clk 0:00:15.9]} 23...
Qh4+ {[%clk 0:01:42.9]} 24. Kg1 {[%clk 0:00:16.2]} 24... Ng4 {[%clk 0:01:42.6]}
25. Rd2 {[%clk 0:00:15.7]} 25... Qh2+ {[%clk 0:01:39.2]} 26. Kf1 {[%clk
0:00:16.1]} 26... d4 {[%clk 0:01:37.6]} 27. Ne4 {[%clk 0:00:14.2]} 27... Ne5
{[%clk 0:01:35.2]} 28. Qe2 {[%clk 0:00:13.8]} 28... Qh1# {[%clk 0:01:32.4]} 0-1

[Event "*** Titled Tuesday Blitz"]
[Site "Chess.com"]
[Date "2020.04.07"]
[Round "8"]
[White "SavelijTartakover"]
[Black "Moon_stone123"]
[Result "0-1"]
[WhiteElo "2605"]
[BlackElo "2504"]
[TimeControl "180+1"]
[EndTime "14:32:11 PDT"]
[Termination "Moon_stone123 won by resignation"]

1. d4 {[%clk 0:03:00.9]} 1... Nf6 {[%clk 0:02:59]} 2. c4 {[%clk 0:02:59.9]} 2...
g6 {[%clk 0:02:59]} 3. Nc3 {[%clk 0:02:59.1]} 3... Bg7 {[%clk 0:02:59]} 4. e4
{[%clk 0:02:58.5]} 4... d6 {[%clk 0:02:59.5]} 5. Be2 {[%clk 0:02:58.6]} 5... O-O
{[%clk 0:02:59.1]} 6. Bg5 {[%clk 0:02:59]} 6... c5 {[%clk 0:02:59]} 7. d5 {[%clk
0:02:58.2]} 7... e6 {[%clk 0:02:59.4]} 8. Qd2 {[%clk 0:02:57.9]} 8... exd5
{[%clk 0:02:53.4]} 9. exd5 {[%clk 0:02:57.7]} 9... a6 {[%clk 0:02:35.2]} 10. a4
{[%clk 0:02:54.6]} 10... Nbd7 {[%clk 0:02:30.6]} 11. Nf3 {[%clk 0:02:53.4]}
11... Re8 {[%clk 0:02:28.7]} 12. O-O {[%clk 0:02:52.6]} 12... Ne5 {[%clk
0:02:27.1]} 13. Nxe5 {[%clk 0:02:52]} 13... Rxe5 {[%clk 0:02:28]} 14. Rfe1
{[%clk 0:02:42]} 14... Qc7 {[%clk 0:02:09.3]} 15. Bf1 {[%clk 0:02:34.2]} 15...
Rxe1 {[%clk 0:01:53.1]} 16. Rxe1 {[%clk 0:02:35.1]} 16... Bf5 {[%clk 0:01:52]}
17. h3 {[%clk 0:02:15.7]} 17... h5 {[%clk 0:01:40]} 18. Qf4 {[%clk 0:01:57.8]}
18... Qd7 {[%clk 0:01:32]} 19. Qh4 {[%clk 0:01:27.7]} 19... Nh7 {[%clk
0:01:29.6]} 20. Re7 {[%clk 0:01:22.8]} 20... Qd8 {[%clk 0:01:16.2]} 21. g4
{[%clk 0:00:54.4]} 21... Nxg5 {[%clk 0:01:10.5]} 22. Qxg5 {[%clk 0:00:54]} 22...
Kf8 {[%clk 0:01:02.4]} 23. Rxf7+ {[%clk 0:00:35.1]} 23... Kxf7 {[%clk
0:01:02.2]} 0-1

[Event "*** Titled Tuesday Blitz"]
[Site "Chess.com"]
[Date "2020.04.07"]
[Round "8"]
[White "mishanick"]
[Black "Elshan1985"]
[Result "0-1"]
[WhiteElo "2983"]
[BlackElo "2711"]
[TimeControl "180+1"]
[EndTime "14:32:19 PDT"]
[Termination "Elshan1985 won by resignation"]

1. d4 {[%clk 0:03:00.9]} 1... e6 {[%clk 0:02:58.9]} 2. c4 {[%clk 0:02:49.1]}
2... Bb4+ {[%clk 0:02:55.8]} 3. Nd2 {[%clk 0:02:48]} 3... Nf6 {[%clk 0:02:54.1]}
4. Nf3 {[%clk 0:02:46.8]} 4... O-O {[%clk 0:02:52.9]} 5. a3 {[%clk 0:02:46.7]}
5... Bxd2+ {[%clk 0:02:52.9]} 6. Qxd2 {[%clk 0:02:47.6]} 6... b6 {[%clk
0:02:52.2]} 7. e3 {[%clk 0:02:47.9]} 7... Bb7 {[%clk 0:02:51.3]} 8. b4 {[%clk
0:02:48.3]} 8... a5 {[%clk 0:02:50.4]} 9. b5 {[%clk 0:02:47.8]} 9... d6 {[%clk
0:02:49.8]} 10. Bb2 {[%clk 0:02:47.9]} 10... Nbd7 {[%clk 0:02:50]} 11. Be2
{[%clk 0:02:48.5]} 11... Ne4 {[%clk 0:02:49.7]} 12. Qc2 {[%clk 0:02:48.1]} 12...
f5 {[%clk 0:02:45.9]} 13. O-O {[%clk 0:02:47.3]} 13... Qe7 {[%clk 0:02:43.8]}
14. a4 {[%clk 0:02:46.1]} 14... Ng5 {[%clk 0:02:39.7]} 15. Ne1 {[%clk
0:02:39.4]} 15... Nh3+ {[%clk 0:02:33.4]} 16. Kh1 {[%clk 0:02:39.2]} 16... Qh4
{[%clk 0:02:29.8]} 17. Bf3 {[%clk 0:02:38.8]} 17... Bxf3 {[%clk 0:02:19.7]} 18.
Nxf3 {[%clk 0:02:39.7]} 18... Qh5 {[%clk 0:02:19.6]} 19. c5 {[%clk 0:02:34.4]}
19... bxc5 {[%clk 0:02:13.3]} 20. dxc5 {[%clk 0:02:35.3]} 20... Nxc5 {[%clk
0:02:13.3]} 21. Ba3 {[%clk 0:02:26.3]} 21... Ne4 {[%clk 0:02:09]} 22. Nd4 {[%clk
0:02:24.6]} 22... Nhg5 {[%clk 0:01:56.6]} 23. Rac1 {[%clk 0:02:14]} 23... f4
{[%clk 0:01:49.6]} 24. exf4 {[%clk 0:01:01.4]} 24... Rxf4 {[%clk 0:01:47.8]} 25.
Kg1 {[%clk 0:00:52.5]} 25... Rh4 {[%clk 0:01:27]} 26. f3 {[%clk 0:00:31.6]}
26... Rxh2 {[%clk 0:01:22.1]} 27. fxe4 {[%clk 0:00:31]} 27... Qh4 {[%clk
0:01:13.7]} 0-1

[Event "*** Titled Tuesday Blitz"]
[Site "Chess.com"]
[Date "2020.04.07"]
[Round "8"]
[White "BakaPG"]
[Black "bait_or_mate"]
[Result "1-0"]
[WhiteElo "2677"]
[BlackElo "2493"]
[TimeControl "180+1"]
[EndTime "14:32:20 PDT"]
[Termination "BakaPG won by resignation"]

1. e4 {[%clk 0:03:00.9]} 1... c5 {[%clk 0:02:58.3]} 2. Nf3 {[%clk 0:02:59.4]}
2... e6 {[%clk 0:02:57.9]} 3. c3 {[%clk 0:02:58.3]} 3... Nf6 {[%clk 0:02:57.4]}
4. e5 {[%clk 0:02:58.2]} 4... Nd5 {[%clk 0:02:56.7]} 5. d4 {[%clk 0:02:58.9]}
5... cxd4 {[%clk 0:02:52.9]} 6. cxd4 {[%clk 0:02:58.9]} 6... d6 {[%clk
0:02:53.4]} 7. exd6 {[%clk 0:02:54.6]} 7... Bxd6 {[%clk 0:02:52.8]} 8. Nc3
{[%clk 0:02:55.3]} 8... O-O {[%clk 0:02:51.9]} 9. Bd3 {[%clk 0:02:54.3]} 9...
Nf4 {[%clk 0:02:43.8]} 10. Bxf4 {[%clk 0:02:52.3]} 10... Bxf4 {[%clk 0:02:44.7]}
11. Qe2 {[%clk 0:02:52.9]} 11... g6 {[%clk 0:02:29.6]} 12. O-O {[%clk
0:02:47.7]} 12... Nc6 {[%clk 0:02:29.5]} 13. Rad1 {[%clk 0:02:47.4]} 13... Qa5
{[%clk 0:02:22.3]} 14. Bc4 {[%clk 0:02:40.3]} 14... Ne7 {[%clk 0:02:06.9]} 15.
Qe4 {[%clk 0:02:30.3]} 15... Bh6 {[%clk 0:02:03.6]} 16. Ne5 {[%clk 0:02:30.1]}
16... Rb8 {[%clk 0:01:41.4]} 17. Qf3 {[%clk 0:02:06.8]} 17... b5 {[%clk
0:01:34.9]} 18. Bb3 {[%clk 0:02:05.2]} 18... Bg7 {[%clk 0:01:01.6]} 19. Ne4
{[%clk 0:02:01.1]} 19... Bb7 {[%clk 0:00:48.6]} 20. Nf6+ {[%clk 0:01:37.7]}
20... Kh8 {[%clk 0:00:45.7]} 21. Qf4 {[%clk 0:01:36.3]} 21... Nf5 {[%clk
0:00:18.9]} 22. Nfd7 {[%clk 0:01:29]} 22... Qc7 {[%clk 0:00:18]} 23. Nxg6+
{[%clk 0:01:24.9]} 1-0

[Event "*** Titled Tuesday Blitz"]
[Site "Chess.com"]
[Date "2020.04.07"]
[Round "8"]
[White "MFguimaraes"]
[Black "eldur16"]
[Result "0-1"]
[WhiteElo "2393"]
[BlackElo "2549"]
[TimeControl "180+1"]
[EndTime "14:32:30 PDT"]
[Termination "eldur16 won by resignation"]

1. e4 {[%clk 0:03:00.9]} 1... Nf6 {[%clk 0:02:59.9]} 2. e5 {[%clk 0:03:00.2]}
2... Nd5 {[%clk 0:02:59.9]} 3. Nf3 {[%clk 0:03:00.6]} 3... d6 {[%clk 0:02:57.5]}
4. d4 {[%clk 0:03:00.6]} 4... Bg4 {[%clk 0:02:55.4]} 5. Be2 {[%clk 0:03:00.4]}
5... e6 {[%clk 0:02:54.7]} 6. O-O {[%clk 0:02:59.9]} 6... Be7 {[%clk 0:02:53.9]}
7. exd6 {[%clk 0:03:00.2]} 7... cxd6 {[%clk 0:02:53.6]} 8. c4 {[%clk 0:03:00.5]}
8... Nb6 {[%clk 0:02:53]} 9. Nc3 {[%clk 0:03:00.9]} 9... O-O {[%clk 0:02:52.4]}
10. Be3 {[%clk 0:02:56.5]} 10... Nc6 {[%clk 0:02:50.1]} 11. b3 {[%clk
0:02:56.2]} 11... d5 {[%clk 0:02:49.5]} 12. c5 {[%clk 0:02:39.4]} 12... Nc8
{[%clk 0:02:48.9]} 13. a3 {[%clk 0:02:37.7]} 13... Bf6 {[%clk 0:02:47.7]} 14. b4
{[%clk 0:02:31.2]} 14... a6 {[%clk 0:02:47.4]} 15. Qa4 {[%clk 0:02:17.2]} 15...
Bxf3 {[%clk 0:02:42]} 16. Bxf3 {[%clk 0:02:17.6]} 16... Nxd4 {[%clk 0:02:41.3]}
17. Bxd4 {[%clk 0:02:16.7]} 17... Bxd4 {[%clk 0:02:40.7]} 18. Rac1 {[%clk
0:02:16.4]} 18... Ne7 {[%clk 0:02:36.3]} 19. Rfd1 {[%clk 0:02:15.4]} 19... Bxc3
{[%clk 0:02:30.4]} 20. Rxc3 {[%clk 0:02:15]} 20... Nc6 {[%clk 0:02:30.3]} 21. b5
{[%clk 0:02:08.7]} 21... axb5 {[%clk 0:02:29.1]} 22. Qxb5 {[%clk 0:02:08.5]}
22... Qa5 {[%clk 0:02:13.7]} 23. Rb3 {[%clk 0:02:02]} 23... Qxb5 {[%clk
0:02:12.3]} 24. Rxb5 {[%clk 0:02:02.9]} 24... Rxa3 {[%clk 0:02:11.9]} 25. Rxb7
{[%clk 0:02:03.1]} 25... Rc3 {[%clk 0:02:11.1]} 26. Rb5 {[%clk 0:02:00.3]} 26...
g6 {[%clk 0:02:03.9]} 27. h4 {[%clk 0:02:00.3]} 27... Rc8 {[%clk 0:02:03.2]} 28.
Ra1 {[%clk 0:01:59.2]} 28... Nd4 {[%clk 0:01:58.6]} 29. Rb7 {[%clk 0:01:59.1]}
29... R3xc5 {[%clk 0:01:56.2]} 30. Raa7 {[%clk 0:01:58.1]} 30... Nc6 {[%clk
0:01:54.1]} 31. Ra6 {[%clk 0:01:53.9]} 31... Ne5 {[%clk 0:01:52.5]} 32. Raa7
{[%clk 0:01:46.8]} 32... h5 {[%clk 0:01:47.5]} 33. Be2 {[%clk 0:01:45.5]} 33...
Rc1+ {[%clk 0:01:45.5]} 34. Kh2 {[%clk 0:01:45.7]} 34... R1c2 {[%clk 0:01:45.5]}
35. f4 {[%clk 0:01:42.2]} 35... Rxe2 {[%clk 0:01:42.3]} 36. fxe5 {[%clk
0:01:42.2]} 36... Rf8 {[%clk 0:01:41.9]} 37. Kg3 {[%clk 0:01:38.7]} 37... Rxe5
{[%clk 0:01:41.6]} 38. Kf4 {[%clk 0:01:36.1]} 38... Rf5+ {[%clk 0:01:41.5]} 39.
Kg3 {[%clk 0:01:36.6]} 39... Rc8 {[%clk 0:01:40.3]} 40. Ra3 {[%clk 0:01:36.2]}
40... Rc4 {[%clk 0:01:38.8]} 41. Kh3 {[%clk 0:01:34.6]} 41... d4 {[%clk
0:01:35.7]} 42. Ra8+ {[%clk 0:01:27.6]} 42... Kg7 {[%clk 0:01:34.8]} 43. Rd8
{[%clk 0:01:26.5]} 43... e5 {[%clk 0:01:29.3]} 44. Re7 {[%clk 0:01:24.2]} 44...
Rc3+ {[%clk 0:01:27.1]} 45. Kh2 {[%clk 0:01:23.3]} 45... d3 {[%clk 0:01:24.5]}
46. Rde8 {[%clk 0:01:16.7]} 46... Rc4 {[%clk 0:01:18.4]} 47. Rxe5 {[%clk
0:01:14.4]} 47... Rxh4+ {[%clk 0:01:17.4]} 48. Kg3 {[%clk 0:01:14.2]} 48... Rg4+
{[%clk 0:01:17.4]} 49. Kh2 {[%clk 0:01:14.6]} 49... Rxe5 {[%clk 0:01:17.3]} 50.
Rxe5 {[%clk 0:01:14.3]} 50... Rd4 {[%clk 0:01:17.1]} 0-1

[Event "*** Titled Tuesday Blitz"]
[Site "Chess.com"]
[Date "2020.04.07"]
[Round "8"]
[White "BobSacIt"]
[Black "ehrenfeld"]
[Result "0-1"]
[WhiteElo "2194"]
[BlackElo "2420"]
[TimeControl "180+1"]
[EndTime "14:32:31 PDT"]
[Termination "ehrenfeld won by resignation"]

1. e4 {[%clk 0:03:00.9]} 1... e5 {[%clk 0:02:59.7]} 2. Nf3 {[%clk 0:03:00.5]}
2... Nc6 {[%clk 0:02:59.7]} 3. d4 {[%clk 0:03:00.8]} 3... exd4 {[%clk
0:02:59.4]} 4. Nxd4 {[%clk 0:03:01.7]} 4... Bc5 {[%clk 0:02:58.3]} 5. Nf5 {[%clk
0:03:01.7]} 5... d6 {[%clk 0:02:52.8]} 6. Nxg7+ {[%clk 0:02:46.6]} 6... Kf8
{[%clk 0:02:52.8]} 7. Nh5 {[%clk 0:02:47]} 7... Qh4 {[%clk 0:02:50.7]} 8. Ng3
{[%clk 0:02:47.5]} 8... Nf6 {[%clk 0:02:48.2]} 9. Be2 {[%clk 0:02:36.8]} 9...
Ng4 {[%clk 0:02:34.2]} 10. Bxg4 {[%clk 0:02:26.5]} 10... Bxg4 {[%clk 0:02:33.9]}
11. Qd2 {[%clk 0:02:25.1]} 11... h5 {[%clk 0:02:19.6]} 12. a3 {[%clk 0:01:37.1]}
12... Re8 {[%clk 0:02:12.6]} 13. b4 {[%clk 0:01:24.3]} 13... Bd4 {[%clk
0:02:09.2]} 14. c3 {[%clk 0:01:20.9]} 14... Bg7 {[%clk 0:02:07.7]} 15. h3 {[%clk
0:01:10.6]} 15... Bd7 {[%clk 0:01:55.4]} 16. Qc2 {[%clk 0:00:35.9]} 16... f5
{[%clk 0:01:50.5]} 17. Nd2 {[%clk 0:00:24]} 17... fxe4 {[%clk 0:01:44.7]} 18.
O-O {[%clk 0:00:24]} 18... d5 {[%clk 0:01:41.2]} 19. b5 {[%clk 0:00:24.4]} 19...
Ne5 {[%clk 0:01:40.2]} 20. a4 {[%clk 0:00:22.6]} 20... Kg8 {[%clk 0:01:38.4]}
21. Qb3 {[%clk 0:00:18.1]} 21... Be6 {[%clk 0:01:35.4]} 22. Re1 {[%clk
0:00:18.1]} 22... Qf6 {[%clk 0:01:29.2]} 23. Qb4 {[%clk 0:00:15.3]} 23... h4
{[%clk 0:01:28.2]} 24. Ngxe4 {[%clk 0:00:14.2]} 24... dxe4 {[%clk 0:01:27.6]}
25. Nxe4 {[%clk 0:00:15.1]} 25... Qg6 {[%clk 0:01:25]} 26. Bg5 {[%clk
0:00:14.5]} 26... Nd3 {[%clk 0:01:22.8]} 27. Qb1 {[%clk 0:00:10.7]} 27... Nxe1
{[%clk 0:01:20.1]} 28. Qxe1 {[%clk 0:00:09.2]} 28... Bf5 {[%clk 0:01:18.2]} 0-1

[Event "*** Titled Tuesday Blitz"]
[Site "Chess.com"]
[Date "2020.04.07"]
[Round "8"]
[White "INLOVEWITHF"]
[Black "StockholmMissile"]
[Result "1-0"]
[WhiteElo "2561"]
[BlackElo "2402"]
[TimeControl "180+1"]
[EndTime "14:32:34 PDT"]
[Termination "INLOVEWITHF won by resignation"]

1. e4 {[%clk 0:03:00.9]} 1... e5 {[%clk 0:02:58.8]} 2. Nf3 {[%clk 0:02:59.6]}
2... Nc6 {[%clk 0:02:58.9]} 3. d4 {[%clk 0:02:56.4]} 3... exd4 {[%clk
0:02:58.4]} 4. Nxd4 {[%clk 0:02:57.3]} 4... Bc5 {[%clk 0:02:57.8]} 5. Be3 {[%clk
0:02:52.7]} 5... Qf6 {[%clk 0:02:55.9]} 6. c3 {[%clk 0:02:52.8]} 6... Nge7
{[%clk 0:02:54.7]} 7. Bb5 {[%clk 0:02:46]} 7... Bb6 {[%clk 0:02:50.5]} 8. O-O
{[%clk 0:02:41.6]} 8... O-O {[%clk 0:02:49.9]} 9. a4 {[%clk 0:02:37.9]} 9... a6
{[%clk 0:02:35.9]} 10. Bc4 {[%clk 0:02:25.4]} 10... d6 {[%clk 0:02:22.6]} 11.
Nxc6 {[%clk 0:02:24.4]} 11... bxc6 {[%clk 0:02:22.2]} 12. Bxb6 {[%clk
0:02:19.1]} 12... cxb6 {[%clk 0:02:23.1]} 13. Nd2 {[%clk 0:02:19.5]} 13... Ng6
{[%clk 0:02:19.6]} 14. f4 {[%clk 0:02:15.5]} 14... Ra7 {[%clk 0:02:01.7]} 15.
Qf3 {[%clk 0:02:10.5]} 15... Ne7 {[%clk 0:01:54.6]} 16. Bd3 {[%clk 0:02:05.8]}
16... Qh4 {[%clk 0:01:44.4]} 17. Qe3 {[%clk 0:02:01.2]} 17... c5 {[%clk
0:01:29.3]} 18. Nc4 {[%clk 0:02:01]} 18... d5 {[%clk 0:01:11]} 19. Nxb6 {[%clk
0:01:56.5]} 19... dxe4 {[%clk 0:01:10.1]} 20. Bxe4 {[%clk 0:01:57.3]} 20... Nf5
{[%clk 0:01:06.8]} 21. Qxc5 {[%clk 0:01:52.3]} 21... Ne7 {[%clk 0:00:39.3]} 22.
Rad1 {[%clk 0:01:45.9]} 22... Bg4 {[%clk 0:00:34.7]} 23. g3 {[%clk 0:01:44.7]}
23... Qf6 {[%clk 0:00:28.3]} 24. Rd6 {[%clk 0:01:41]} 24... Be6 {[%clk
0:00:27.8]} 25. Nd5 {[%clk 0:01:41]} 25... Nxd5 {[%clk 0:00:26.7]} 26. Qxa7
{[%clk 0:01:41.5]} 26... Ne7 {[%clk 0:00:18.5]} 27. Rxa6 {[%clk 0:01:40.9]}
27... g6 {[%clk 0:00:15]} 28. Qd4 {[%clk 0:01:39.9]} 28... Qxd4+ {[%clk
0:00:12.2]} 29. cxd4 {[%clk 0:01:40.8]} 29... Rb8 {[%clk 0:00:11.9]} 30. Ra8
{[%clk 0:01:31.1]} 30... Rxa8 {[%clk 0:00:11]} 31. Bxa8 {[%clk 0:01:32]} 1-0

[Event "*** Titled Tuesday Blitz"]
[Site "Chess.com"]
[Date "2020.04.07"]
[Round "8"]
[White "Malev212"]
[Black "Jbd735"]
[Result "1-0"]
[WhiteElo "2575"]
[BlackElo "2463"]
[TimeControl "180+1"]
[EndTime "14:32:34 PDT"]
[Termination "Malev212 won on time"]

1. e4 {[%clk 0:03:00.9]} 1... e5 {[%clk 0:01:59.8]} 2. f4 {[%clk 0:02:46.6]}
2... exf4 {[%clk 0:01:59.6]} 3. Be2 {[%clk 0:02:46.5]} 3... Nc6 {[%clk
0:01:50.4]} 4. d4 {[%clk 0:02:45.8]} 4... g5 {[%clk 0:01:49.5]} 5. h4 {[%clk
0:02:43.6]} 5... Bg7 {[%clk 0:01:44.1]} 6. c3 {[%clk 0:02:42.7]} 6... h6 {[%clk
0:01:43.5]} 7. Nf3 {[%clk 0:02:31.6]} 7... d6 {[%clk 0:01:42.2]} 8. Na3 {[%clk
0:02:28.7]} 8... g4 {[%clk 0:01:23.9]} 9. Ng1 {[%clk 0:02:26.5]} 9... f3 {[%clk
0:01:21.6]} 10. gxf3 {[%clk 0:02:24.8]} 10... Bf6 {[%clk 0:01:20.6]} 11. Be3
{[%clk 0:02:11.3]} 11... Bxh4+ {[%clk 0:01:19.5]} 12. Kd2 {[%clk 0:02:11.2]}
12... g3 {[%clk 0:01:09.7]} 13. f4 {[%clk 0:02:10]} 13... Nf6 {[%clk 0:01:06.5]}
14. Bf3 {[%clk 0:02:08]} 14... Nh7 {[%clk 0:00:37.5]} 15. Ne2 {[%clk 0:02:05.3]}
15... Bd7 {[%clk 0:00:36.3]} 16. Qb3 {[%clk 0:02:01.3]} 16... Qe7 {[%clk
0:00:32.2]} 17. d5 {[%clk 0:01:54.3]} 17... Na5 {[%clk 0:00:27.5]} 18. Qb4
{[%clk 0:01:47.9]} 18... b6 {[%clk 0:00:27.1]} 19. Nb5 {[%clk 0:01:47.6]} 19...
Kd8 {[%clk 0:00:16.7]} 20. a4 {[%clk 0:01:38.1]} 20... Rg8 {[%clk 0:00:15.8]}
21. Bg2 {[%clk 0:01:35]} 21... c5 {[%clk 0:00:05]} 22. dxc6 {[%clk 0:01:32.1]}
22... Bxc6 {[%clk 0:00:05.3]} 23. Kc2 {[%clk 0:01:28.6]} 23... Kd7 {[%clk
0:00:04.1]} 24. Rad1 {[%clk 0:01:26.8]} 24... Rgd8 {[%clk 0:00:02.6]} 25. Nxd6
{[%clk 0:01:23.2]} 25... Kc7 {[%clk 0:00:01.7]} 26. Nf5 {[%clk 0:01:14.2]} 1-0

[Event "*** Titled Tuesday Blitz"]
[Site "Chess.com"]
[Date "2020.04.07"]
[Round "8"]
[White "Grandmasta23"]
[Black "quesfr"]
[Result "0-1"]
[WhiteElo "2305"]
[BlackElo "2198"]
[TimeControl "180+1"]
[EndTime "14:32:34 PDT"]
[Termination "quesfr won by resignation"]

1. e4 {[%clk 0:03:00.9]} 1... e6 {[%clk 0:02:59.5]} 2. d4 {[%clk 0:03:00.1]}
2... d5 {[%clk 0:03:00]} 3. exd5 {[%clk 0:02:57.6]} 3... exd5 {[%clk 0:03:00.9]}
4. Nf3 {[%clk 0:02:58.5]} 4... Bd6 {[%clk 0:02:59.7]} 5. c4 {[%clk 0:02:57]}
5... Nf6 {[%clk 0:02:59.8]} 6. Nc3 {[%clk 0:02:40.5]} 6... dxc4 {[%clk
0:02:59.8]} 7. Bxc4 {[%clk 0:02:32.3]} 7... Nc6 {[%clk 0:03:00]} 8. O-O {[%clk
0:02:30.6]} 8... O-O {[%clk 0:03:00]} 9. Bg5 {[%clk 0:02:29.5]} 9... Bg4 {[%clk
0:03:00]} 10. Be2 {[%clk 0:02:17.8]} 10... Bxf3 {[%clk 0:02:54.9]} 11. Bxf3
{[%clk 0:02:18.7]} 11... Nxd4 {[%clk 0:02:55]} 12. Kh1 {[%clk 0:02:10]} 12...
Nxf3 {[%clk 0:02:44]} 13. Qxf3 {[%clk 0:02:10.9]} 13... Be5 {[%clk 0:02:40.1]}
14. Rad1 {[%clk 0:02:07.1]} 14... Qc8 {[%clk 0:02:40.2]} 15. Bxf6 {[%clk
0:02:01.4]} 15... Bxf6 {[%clk 0:02:38.8]} 16. Nd5 {[%clk 0:02:01.9]} 16... Bd8
{[%clk 0:02:37.7]} 17. Rfe1 {[%clk 0:01:54.6]} 17... c6 {[%clk 0:02:37.4]} 18.
Ne3 {[%clk 0:01:36.5]} 18... Ba5 {[%clk 0:02:32.3]} 19. Nf5 {[%clk 0:01:31.1]}
19... Kh8 {[%clk 0:02:03.2]} 20. Re7 {[%clk 0:01:08.5]} 20... Bd8 {[%clk
0:01:36.5]} 21. Qg4 {[%clk 0:00:52.9]} 21... g6 {[%clk 0:01:19.7]} 22. Qd4+
{[%clk 0:00:32.1]} 22... f6 {[%clk 0:01:19.8]} 23. Nd6 {[%clk 0:00:23.1]} 23...
Bxe7 {[%clk 0:01:01.3]} 24. Nxc8 {[%clk 0:00:20.2]} 24... Raxc8 {[%clk
0:01:02.2]} 25. Qd7 {[%clk 0:00:20.8]} 25... Rcd8 {[%clk 0:01:01.1]} 0-1

[Event "*** Titled Tuesday Blitz"]
[Site "Chess.com"]
[Date "2020.04.07"]
[Round "8"]
[White "LikeWater"]
[Black "nochewycandy"]
[Result "1-0"]
[WhiteElo "2687"]
[BlackElo "2527"]
[TimeControl "180+1"]
[EndTime "14:32:38 PDT"]
[Termination "LikeWater won by checkmate"]

1. e4 {[%clk 0:03:00.9]} 1... g6 {[%clk 0:02:58]} 2. d4 {[%clk 0:02:59.8]} 2...
Bg7 {[%clk 0:02:54.8]} 3. Nc3 {[%clk 0:02:59.8]} 3... d6 {[%clk 0:02:54.6]} 4.
Be3 {[%clk 0:02:59.4]} 4... a6 {[%clk 0:02:54.7]} 5. h4 {[%clk 0:02:56.4]} 5...
Nf6 {[%clk 0:02:50.3]} 6. f3 {[%clk 0:02:51]} 6... h5 {[%clk 0:02:50.2]} 7. Qd2
{[%clk 0:02:49.7]} 7... b5 {[%clk 0:02:50.1]} 8. Nh3 {[%clk 0:02:46.3]} 8...
Bxh3 {[%clk 0:02:49.7]} 9. Rxh3 {[%clk 0:02:45.1]} 9... c6 {[%clk 0:02:50.6]}
10. Bd3 {[%clk 0:02:28.1]} 10... Nbd7 {[%clk 0:02:48.7]} 11. O-O-O {[%clk
0:02:21.8]} 11... Qc7 {[%clk 0:02:45.8]} 12. Kb1 {[%clk 0:02:18.1]} 12... O-O
{[%clk 0:02:45.3]} 13. Bh6 {[%clk 0:02:16.4]} 13... c5 {[%clk 0:02:39.1]} 14.
dxc5 {[%clk 0:01:51.7]} 14... Nxc5 {[%clk 0:02:31.6]} 15. Bxg7 {[%clk
0:01:50.8]} 15... Kxg7 {[%clk 0:02:31.4]} 16. g4 {[%clk 0:01:49.2]} 16... hxg4
{[%clk 0:02:26.7]} 17. fxg4 {[%clk 0:01:50.1]} 17... b4 {[%clk 0:02:06.7]} 18.
Nd5 {[%clk 0:01:50.2]} 18... Nxd5 {[%clk 0:02:07.1]} 19. exd5 {[%clk 0:01:51.1]}
19... Rh8 {[%clk 0:02:01.1]} 20. h5 {[%clk 0:01:46.4]} 20... Nxd3 {[%clk
0:01:52.8]} 21. Qxd3 {[%clk 0:01:40.2]} 21... Qc5 {[%clk 0:01:53]} 22. Rf3
{[%clk 0:01:32.9]} 22... Raf8 {[%clk 0:01:48.2]} 23. Re1 {[%clk 0:01:28.7]}
23... gxh5 {[%clk 0:01:36]} 24. gxh5 {[%clk 0:01:18.9]} 24... Rxh5 {[%clk
0:01:27.7]} 25. Rg3+ {[%clk 0:01:16.5]} 25... Kh8 {[%clk 0:01:17.7]} 26. Rh3
{[%clk 0:01:09.4]} 26... Rxh3 {[%clk 0:00:56.8]} 27. Qxh3+ {[%clk 0:01:10.3]}
27... Kg7 {[%clk 0:00:57.7]} 28. Qg4+ {[%clk 0:01:06.3]} 28... Kf6 {[%clk
0:00:57.8]} 29. Rf1+ {[%clk 0:01:02.4]} 29... Ke5 {[%clk 0:00:58]} 30. Qf5+
{[%clk 0:00:50]} 30... Kd4 {[%clk 0:00:55.4]} 31. Qd3+ {[%clk 0:00:38.5]} 31...
Ke5 {[%clk 0:00:48.4]} 32. Rf5# {[%clk 0:00:38.2]} 1-0